fUST/lending_fUST_20250221
["ID","MTS","AMOUNT","RATE_DAILY","PERIOD"]
[353848978,1740091851838,-349.0,0.000145,2]
[353848979,1740091851848,-314.0,0.000145,2]
[353848980,1740091851861,-349.0,0.000145,2]
[353848981,1740091851871,-314.0,0.000145,2]
[353848982,1740091851879,-349.0,0.000145,2]
[353848983,1740091851889,-314.0,0.000145,2]
[353848984,1740091851898,-349.0,0.000145,2]
[353848985,1740091851908,-314.0,0.000145,2]
[353848986,1740091851917,-349.0,0.000145,2]
[353848987,1740091851926,-314.0,0.000145,2]
[353848988,1740091851937,-349.0,0.000145,2]
[353848989,1740091851947,-314.0,0.000145,2]
[353848990,1740091851956,-349.0,0.000145,2]
[353848991,1740091851965,-314.0,0.000145,2]
[353848992,1740091851974,-314.0,0.000145,2]
[353848993,1740091851984,-349.0,0.000145,2]
[353848994,1740091851994,-314.0,0.000145,2]
[353848995,1740091852003,-349.0,0.000145,2]
[353848996,1740091852012,-314.0,0.000145,2]
[353848997,1740091852022,-349.0,0.000145,2]
[353848998,1740091852031,-314.0,0.000145,2]
[353848999,1740091852040,-349.0,0.000145,2]
[353849000,1740091852050,-349.0,0.000145,2]
[353849001,1740091852059,-314.0,0.000145,2]
[353849002,1740091852069,-349.0,0.000145,2]
[353849003,1740091852078,-314.0,0.000145,2]
[353849004,1740091852087,-349.0,0.000145,2]
[353849005,1740091852097,-314.0,0.000145,2]
[353849006,1740091852106,-349.0,0.000145,2]
[353849007,1740091852116,-314.0,0.000145,2]
[353849008,1740091852125,-349.0,0.000145,2]
[353849009,1740091852134,-349.0,0.000145,2]
[353849010,1740091852144,-314.0,0.000145,2]
[353849011,1740091852153,-349.0,0.000145,2]
[353849012,1740091852163,-314.0,0.000145,2]
[353849013,1740091852172,-314.0,0.000145,2]
[353849014,1740091852182,-349.0,0.000145,2]
[353849015,1740091852192,-314.0,0.000145,2]
[353849016,1740091852201,-349.0,0.000145,2]
[353849017,1740091852211,-314.0,0.000145,2]
[353849018,1740091852220,-349.0,0.000145,2]
[353849019,1740091852230,-314.0,0.000145,2]
[353849020,1740091852240,-349.0,0.000145,2]
[353849021,1740091852249,-314.0,0.000145,2]
[353849022,1740091852259,-349.0,0.000145,2]
[353849023,1740091852268,-314.0,0.000145,2]
[353849024,1740091852278,-349.0,0.000145,2]
[353849025,1740091852287,-314.0,0.000145,2]
[353849026,1740091852297,-349.0,0.000145,2]
[353849027,1740091852306,-314.0,0.000145,2]
[353849028,1740091852315,-349.0,0.000145,2]
[353849029,1740091852324,-314.0,0.000145,2]
[353849030,1740091852333,-349.0,0.000145,2]
[353849031,1740091852342,-271.63,0.000145,2]
[353849032,1740091852352,-349.0,0.000145,2]
[353849033,1740091852361,-349.0,0.000145,2]
[353849034,1740091852370,-349.0,0.000145,2]
[353849035,1740091852379,-349.0,0.000145,2]
[353849036,1740091852389,-349.0,0.000145,2]
[353849037,1740091852398,-349.0,0.000145,2]
[353849038,1740091852407,-349.0,0.000145,2]
[353849039,1740091852417,-349.0,0.000145,2]
[353849040,1740091852426,-349.0,0.000145,2]
[353849041,1740091852435,-371.53921299,0.000145,2]
[353849042,1740091852444,-196.012323,0.000145,2]
[353849043,1740091852453,-151.0,0.000145,2]
[353849044,1740091852462,-158.866005,0.000145,2]
[353849045,1740091852472,-151.323662,0.000145,2]
[353849046,1740091852481,-152.0,0.000145,2]
[353849047,1740091852490,-151.0,0.000145,2]
[353849048,1740091852499,-152.137845,0.000145,2]
[353849049,1740091852508,-151.0,0.000145,2]
[353849050,1740091852517,-151.0,0.000145,2]
[353849051,1740091852526,-151.0,0.000145,2]
[353849052,1740091852535,-151.0,0.000145,2]
[353849053,1740091852545,-224.336594,0.000145,2]
[353849054,1740091852554,-224.336594,0.000145,2]
[353849055,1740091852563,-151.0,0.000145,2]
[353849056,1740091852572,-150.0,0.00014501,2]
[353849057,1740091852582,-212.007,0.00014501,2]
[353849058,1740091852591,-150.0,0.00014501,2]
[353849059,1740091852600,-279.632,0.00014501,2]
[353849060,1740091852609,-744.67164941,0.00014506,2]
[353849061,1740091852618,-3000.0,0.0001451,30]
[353849062,1740091852719,-3000.0,0.0001452,30]
[353849063,1740091852728,-500.0,0.0001452,2]
[353849064,1740091852737,-686.68,0.0001452,2]
[353849065,1740091852746,-500.0,0.0001452,2]
[353849066,1740091852755,-500.0,0.0001452,2]
[353849067,1740091852765,-671.74,0.0001452,2]
[353849068,1740091852774,-500.0,0.0001452,2]
[353849069,1740091852783,-500.0,0.0001452,2]
[353849070,1740091852792,-1783.85,0.0001452,2]
[353849071,1740091852801,-500.0,0.0001452,2]
[353849072,1740091852810,-500.0,0.0001452,2]
[353849073,1740091852819,-500.0,0.0001452,2]
[353849074,1740091852828,-862.2,0.0001452,2]
[353849075,1740091852838,-1028.23,0.0001452,2]
[353849076,1740091852849,-1124.71,0.0001452,2]
[353849077,1740091852863,-500.0,0.0001452,2]
[353849078,1740091852873,-500.0,0.0001452,2]
[353849079,1740091852883,-707.15,0.0001452,2]
[353849080,1740091852893,-1000.0,0.0001452,2]
[353849081,1740091852906,-775.53,0.0001452,2]
[353849082,1740091852916,-1370.18,0.0001452,2]
[353849083,1740091852926,-729.43,0.0001452,2]
[353849084,1740091852937,-500.0,0.0001452,2]
[353849085,1740091852947,-928.99,0.0001452,2]
[353849086,1740091852957,-500.0,0.0001452,2]
[353849087,1740091852967,-721.69,0.0001452,2]
[353849088,1740091852977,-1504.71,0.0001452,2]
[353849089,1740091852987,-693.21,0.0001452,2]
[353849090,1740091852995,-500.0,0.0001452,2]
[353849091,1740091853005,-500.0,0.0001452,2]
[353849092,1740091853014,-631.36,0.0001452,2]
[353849093,1740091853023,-1377.57,0.0001452,2]
[353849094,1740091853033,-500.0,0.0001452,2]
[353849095,1740091853042,-555.94,0.0001452,2]
[353849096,1740091853051,-1000.63,0.0001452,2]
[353849097,1740091853061,-500.0,0.0001452,2]
[353849098,1740091853070,-500.0,0.0001452,2]
[353849099,1740091853079,-900.89,0.0001452,2]
[353849100,1740091853089,-664.48,0.0001452,2]
[353849101,1740091853098,-500.0,0.0001452,2]
[353849102,1740091853108,-500.0,0.0001452,2]
[353849103,1740091853119,-601.74,0.0001452,2]
[353849104,1740091853129,-546.38,0.0001452,2]
[353849105,1740091853139,-500.0,0.0001452,2]
[353849106,1740091853149,-4502.58,0.0001452,2]
[353849107,1740091853158,-500.0,0.0001452,2]
[353849108,1740091853168,-886.79,0.0001452,2]
[353849109,1740091853177,-500.0,0.0001452,2]
[353849110,1740091853189,-1370.08,0.0001452,2]
[353849111,1740091853199,-749.35,0.0001452,2]
[353849112,1740091853209,-1573.46,0.0001452,2]
[353849113,1740091853219,-500.0,0.0001452,2]
[353849114,1740091853228,-47582.77,0.0001452,2]
[353849115,1740091853238,-500.0,0.0001452,2]
[353849116,1740091853247,-1419.31,0.0001452,2]
[353849117,1740091853257,-2371.63,0.0001452,2]
[353849118,1740091853267,-3044.91,0.0001452,2]
[353849119,1740091853276,-1421.06,0.0001452,2]
[353849120,1740091853285,-1981.43,0.0001452,2]
[353849121,1740091853295,-1485.07,0.0001452,2]
[353849122,1740091853305,-500.0,0.0001452,2]
[353849123,1740091853315,-4309.84,0.0001452,2]
[353849124,1740091853324,-8528.76,0.0001452,2]
[353849125,1740091853334,-630.65,0.0001452,2]
[353849126,1740091853345,-506.4,0.0001452,2]
[353849127,1740091853354,-1073.14,0.0001452,2]
[353849128,1740091853364,-4317.45,0.0001452,2]
[353849129,1740091853373,-500.0,0.0001452,2]
[353849130,1740091853383,-500.0,0.0001452,2]
[353849131,1740091853392,-150.21,0.0001452,2]
[353849132,1740091853402,-150.21,0.0001452,2]
[353849133,1740091853411,-150.21,0.0001452,2]
[353849134,1740091853422,-2449.34,0.0001452,2]
[353849135,1740091853432,-1506.63,0.0001452,2]
[353849136,1740091853442,-601.98,0.0001452,2]
[353849137,1740091853451,-4294.1,0.0001452,2]
[353849138,1740091853461,-645.96,0.0001452,2]
[353849139,1740091853470,-500.0,0.0001452,2]
[353849140,1740091853480,-744.2,0.0001452,2]
[353849141,1740091853489,-1264.16,0.0001452,2]
[353849142,1740091853499,-1017.94,0.0001452,2]
[353849143,1740091853509,-671.35,0.0001452,2]
[353849144,1740091853518,-2214.99,0.0001452,2]
[353849145,1740091853527,-707.81,0.0001452,2]
[353849146,1740091853537,-500.0,0.0001452,2]
[353849147,1740091853546,-2494.82,0.0001452,2]
[353849148,1740091853556,-2395.75,0.0001452,2]
[353849149,1740091853566,-605.1,0.0001452,2]
[353849150,1740091853576,-20855.28,0.0001452,2]
[353849151,1740091853585,-899.23,0.0001452,2]
[353849152,1740091853595,-2809.02,0.0001452,2]
[353849153,1740091853604,-500.0,0.0001452,2]
[353849154,1740091853614,-6937.4,0.0001452,2]
[353849155,1740091853623,-2444.33,0.0001452,2]
[353849156,1740091853633,-2173.53,0.0001452,2]
[353849157,1740091853642,-656.62,0.0001452,2]
[353849158,1740091853652,-1073.43,0.0001452,2]
[353849159,1740091853661,-500.0,0.0001452,2]
[353849160,1740091853671,-681.21,0.0001452,2]
[353849161,1740091853680,-500.0,0.0001452,2]
[353849162,1740091853690,-516.7,0.0001452,2]
[353849163,1740091853699,-2663.01,0.0001452,2]
[353849164,1740091853709,-150.21,0.0001452,2]
[353849165,1740091853718,-500.0,0.0001452,2]
[353849166,1740091853728,-500.0,0.0001452,2]
[353849167,1740091853737,-500.0,0.0001452,2]
[353849168,1740091853747,-500.0,0.0001452,2]
[353849169,1740091853757,-150.21,0.0001452,2]
[353849170,1740091853767,-3692.28,0.0001452,2]
[353849171,1740091853776,-500.0,0.0001452,2]
[353849172,1740091853785,-3000.0,0.0001453,30]
[353849173,1740091853795,-3029.600714,0.0001454,30]
[353849174,1740091853804,-306.0,0.0001458,2]
[353849175,1740091853814,-622.0,0.000146,2]
[353849176,1740091853824,-500.0,0.00014602,2]
[353849177,1740091853834,-686.68,0.00014602,2]
[353849178,1740091853844,-500.0,0.00014602,2]
[353849179,1740091853856,-500.0,0.00014602,2]
[353849180,1740091853867,-671.74,0.00014602,2]
[353849181,1740091853876,-500.0,0.00014602,2]
[353849182,1740091853885,-500.0,0.00014602,2]
[353849183,1740091853895,-1783.85,0.00014602,2]
[353849184,1740091853905,-500.0,0.00014602,2]
[353849185,1740091853914,-500.0,0.00014602,2]
[353849186,1740091853923,-500.0,0.00014602,2]
[353849187,1740091853934,-862.2,0.00014602,2]
[353849188,1740091853944,-1028.23,0.00014602,2]
[353849189,1740091853954,-1124.71,0.00014602,2]
[353849190,1740091853963,-500.0,0.00014602,2]
[353849191,1740091853973,-500.0,0.00014602,2]
[353849192,1740091853982,-707.15,0.00014602,2]
[353849193,1740091853992,-1000.0,0.00014602,2]
[353849194,1740091854001,-775.53,0.00014602,2]
[353849195,1740091854010,-1370.18,0.00014602,2]
[353849196,1740091854020,-729.43,0.00014602,2]
[353849197,1740091854029,-500.0,0.00014602,2]
[353849198,1740091854039,-928.99,0.00014602,2]
[353849199,1740091854048,-500.0,0.00014602,2]
[353849200,1740091854057,-721.69,0.00014602,2]
[353849201,1740091854066,-1504.71,0.00014602,2]
[353849202,1740091854076,-693.21,0.00014602,2]
[353849203,1740091854085,-500.0,0.00014602,2]
[353849204,1740091854095,-500.0,0.00014602,2]
[353849205,1740091854104,-631.36,0.00014602,2]
[353849206,1740091854114,-1377.57,0.00014602,2]
[353849207,1740091854124,-260.75565581,0.00014602,2]
[353849208,1740091854134,-555.94,0.00014602,2]
[353849209,1740091854144,-1000.63,0.00014602,2]
[353849210,1740091854153,-500.0,0.00014602,2]
[353849211,1740091854163,-500.0,0.00014602,2]
[353849212,1740091854173,-900.89,0.00014602,2]
[353849213,1740091854182,-664.48,0.00014602,2]
[353849214,1740091854192,-500.0,0.00014602,2]
[353849215,1740091854201,-500.0,0.00014602,2]
[353849216,1740091854210,-601.74,0.00014602,2]
[353849217,1740091854220,-546.38,0.00014602,2]
[353849218,1740091854229,-500.0,0.00014602,2]
[353849219,1740091854238,-4502.58,0.00014602,2]
[353849220,1740091854247,-500.0,0.00014602,2]
[353849221,1740091854256,-886.79,0.00014602,2]
[353849222,1740091854265,-500.0,0.00014602,2]
[353849223,1740091854275,-1370.08,0.00014602,2]
[353849224,1740091854284,-1573.46,0.00014602,2]
[353849225,1740091854294,-749.35,0.00014602,2]
[353849226,1740091854303,-500.0,0.00014602,2]
[353849227,1740091854312,-47582.77,0.00014602,2]
[353849228,1740091854322,-500.0,0.00014602,2]
[353849229,1740091854332,-1419.31,0.00014602,2]
[353849230,1740091854341,-2371.63,0.00014602,2]
[353849231,1740091854350,-3044.91,0.00014602,2]
[353849232,1740091854360,-1421.06,0.00014602,2]
[353849233,1740091854369,-1981.43,0.00014602,2]
[353849234,1740091854378,-1485.07,0.00014602,2]
[353849235,1740091854387,-500.0,0.00014602,2]
[353849236,1740091854397,-4309.84,0.00014602,2]
[353849237,1740091854406,-8528.76,0.00014602,2]
[353849238,1740091854415,-630.65,0.00014602,2]
[353849239,1740091854425,-506.4,0.00014602,2]
[353849240,1740091854434,-1073.14,0.00014602,2]
[353849241,1740091854444,-4317.45,0.00014602,2]
[353849242,1740091854454,-2449.34,0.00014602,2]
[353849243,1740091854463,-1506.63,0.00014602,2]
[353849244,1740091854473,-601.98,0.00014602,2]
[353849245,1740091854482,-4294.1,0.00014602,2]
[353849246,1740091854492,-645.96,0.00014602,2]
[353849247,1740091854501,-254.68426012,0.00014602,2]
[353849248,1740091854511,-744.2,0.00014602,2]
[353849249,1740091854521,-1264.16,0.00014602,2]
[353849250,1740091854530,-1017.94,0.00014602,2]
[353849251,1740091854539,-671.35,0.00014602,2]
[353849252,1740091854548,-2214.99,0.00014602,2]
[353849253,1740091854558,-707.81,0.00014602,2]
[353849254,1740091854569,-500.0,0.00014602,2]
[353849255,1740091854580,-2494.82,0.00014602,2]
[353849256,1740091854589,-2395.75,0.00014602,2]
[353849257,1740091854599,-605.1,0.00014602,2]
[353849258,1740091854608,-20855.28,0.00014602,2]
[353849259,1740091854617,-899.23,0.00014602,2]
[353849260,1740091854627,-2809.02,0.00014602,2]
[353849261,1740091854637,-500.0,0.00014602,2]
[353849262,1740091854647,-6937.4,0.00014602,2]
[353849263,1740091854656,-2444.33,0.00014602,2]
[353849264,1740091854665,-2173.53,0.00014602,2]
[353849265,1740091854674,-656.62,0.00014602,2]
[353849266,1740091854683,-1073.43,0.00014602,2]
[353849267,1740091854692,-500.0,0.00014602,2]
[353849268,1740091854701,-681.21,0.00014602,2]
[353849269,1740091854711,-500.0,0.00014602,2]
[353849270,1740091854720,-516.7,0.00014602,2]
[353849271,1740091854729,-2663.01,0.00014602,2]
[353849272,1740091854824,-338.66649462,0.00014602,2]
[353849273,1740091854834,-500.0,0.00014602,2]
[353849274,1740091854844,-3692.28,0.00014602,2]
[353849275,1740091854857,-500.0,0.00014602,2]
[353849276,1740091854867,-744.67164941,0.00014606,2]
[353849277,1740091854876,-2200.0,0.00014621,2]
[353849278,1740091854886,-150.0,0.00014623,2]
[353849279,1740091854896,-538.0,0.00014623,2]
[353849280,1740091854906,-1969.0,0.00014623,2]
[353849281,1740091854915,-2287.0,0.00014623,2]
[353849282,1740091854924,-396.0,0.00014623,2]
[353849283,1740091854936,-150.0,0.00014623,2]
[353849284,1740091854945,-600.0,0.0001465,2]
[353849285,1740091854954,-500.0,0.00014673,2]
[353849286,1740091854963,-1020.454338,0.00014682,2]
[353849287,1740091854973,-500.0,0.00014684,2]
[353849288,1740091854982,-686.68,0.00014684,2]
[353849289,1740091854991,-500.0,0.00014684,2]
[353849290,1740091855000,-500.0,0.00014684,2]
[353849291,1740091855009,-671.74,0.00014684,2]
[353849292,1740091855019,-500.0,0.00014684,2]
[353849293,1740091855028,-500.0,0.00014684,2]
[353849294,1740091855037,-1783.85,0.00014684,2]
[353849295,1740091855047,-500.0,0.00014684,2]
[353849296,1740091855056,-204.22984902,0.00014684,2]
[353849297,1740091855066,-500.0,0.00014684,2]
[353849298,1740091855075,-862.2,0.00014684,2]
[353849299,1740091855085,-1028.23,0.00014684,2]
[353849300,1740091855094,-1124.71,0.00014684,2]
[353849301,1740091855103,-500.0,0.00014684,2]
[353849302,1740091855113,-500.0,0.00014684,2]
[353849303,1740091855125,-707.15,0.00014684,2]
[353849304,1740091855135,-358.92,0.00014684,2]
[353849305,1740091855145,-775.53,0.00014684,2]
[353849306,1740091855154,-1370.18,0.00014684,2]
[353849307,1740091855163,-729.43,0.00014684,2]
[353849308,1740091855172,-500.0,0.00014684,2]
[353849309,1740091855183,-928.99,0.00014684,2]
[353849310,1740091855192,-500.0,0.00014684,2]
[353849311,1740091855201,-721.69,0.00014684,2]
[353849312,1740091855211,-1504.71,0.00014684,2]
[353849313,1740091855221,-693.21,0.00014684,2]
[353849314,1740091855230,-500.0,0.00014684,2]
[353849315,1740091855239,-500.0,0.00014684,2]
[353849316,1740091855249,-631.36,0.00014684,2]
[353849317,1740091855258,-1377.57,0.00014684,2]
[353849318,1740091855268,-555.94,0.00014684,2]
[353849319,1740091855277,-1000.63,0.00014684,2]
[353849320,1740091855287,-500.0,0.00014684,2]
[353849321,1740091855295,-500.0,0.00014684,2]
[353849322,1740091855304,-900.89,0.00014684,2]
[353849323,1740091855314,-664.48,0.00014684,2]
[353849324,1740091855323,-500.0,0.00014684,2]
[353849325,1740091855332,-500.0,0.00014684,2]
[353849326,1740091855342,-601.74,0.00014684,2]
[353849327,1740091855351,-546.38,0.00014684,2]
[353849328,1740091855360,-500.0,0.00014684,2]
[353849329,1740091855369,-4502.58,0.00014684,2]
[353849330,1740091855379,-500.0,0.00014684,2]
[353849331,1740091855387,-886.79,0.00014684,2]
[353849332,1740091855397,-500.0,0.00014684,2]
[353849333,1740091855406,-1370.08,0.00014684,2]
[353849334,1740091855416,-1573.46,0.00014684,2]
[353849335,1740091855425,-749.35,0.00014684,2]
[353849336,1740091855435,-500.0,0.00014684,2]
[353849337,1740091855445,-47582.77,0.00014684,2]
[353849338,1740091855454,-500.0,0.00014684,2]
[353849339,1740091855464,-1419.31,0.00014684,2]
[353849340,1740091855477,-2371.63,0.00014684,2]
[353849341,1740091855487,-3044.91,0.00014684,2]
[353849342,1740091855497,-1421.06,0.00014684,2]
[353849343,1740091855506,-1981.43,0.00014684,2]
[353849344,1740091855514,-1485.07,0.00014684,2]
[353849345,1740091855523,-370.32730835,0.00014684,2]
[353849346,1740091855533,-4309.84,0.00014684,2]
[353849347,1740091855542,-8528.76,0.00014684,2]
[353849348,1740091855551,-630.65,0.00014684,2]
[353849349,1740091855561,-506.4,0.00014684,2]
[353849350,1740091855571,-1073.14,0.00014684,2]
[353849351,1740091855581,-4317.45,0.00014684,2]
[353849352,1740091855591,-2449.34,0.00014684,2]
[353849353,1740091855601,-1506.63,0.00014684,2]
[353849354,1740091855611,-601.98,0.00014684,2]
[353849355,1740091855620,-4294.1,0.00014684,2]
[353849356,1740091855629,-645.96,0.00014684,2]
[353849357,1740091855639,-744.2,0.00014684,2]
[353849358,1740091855649,-1264.16,0.00014684,2]
[353849359,1740091855659,-1017.94,0.00014684,2]
[353849360,1740091855668,-671.35,0.00014684,2]
[353849361,1740091855677,-2214.99,0.00014684,2]
[353849362,1740091855687,-707.81,0.00014684,2]
[353849363,1740091855697,-500.0,0.00014684,2]
[353849364,1740091855707,-2494.82,0.00014684,2]
[353849365,1740091855716,-2395.75,0.00014684,2]
[353849366,1740091855726,-605.1,0.00014684,2]
[353849367,1740091855736,-20855.28,0.00014684,2]
[353849368,1740091855746,-899.23,0.00014684,2]
[353849369,1740091855758,-2809.02,0.00014684,2]
[353849370,1740091855769,-500.0,0.00014684,2]
[353849371,1740091855778,-6937.4,0.00014684,2]
[353849372,1740091855788,-2444.33,0.00014684,2]
[353849373,1740091855797,-2173.53,0.00014684,2]
[353849374,1740091855806,-656.62,0.00014684,2]
[353849375,1740091855816,-1073.43,0.00014684,2]
[353849376,1740091855826,-500.0,0.00014684,2]
[353849377,1740091855836,-681.21,0.00014684,2]
[353849378,1740091855845,-500.0,0.00014684,2]
[353849379,1740091855858,-516.7,0.00014684,2]
[353849380,1740091855867,-2663.01,0.00014684,2]
[353849381,1740091855877,-500.0,0.00014684,2]
[353849382,1740091855886,-3692.28,0.00014684,2]
[353849383,1740091855897,-500.0,0.00014684,2]
[353849384,1740091855907,-744.67164941,0.00014706,2]
[353849385,1740091855916,-1083.7195811,0.00014712,2]
[353849386,1740091855926,-154.7577468,0.00014712,2]
[353849387,1740091855936,-153.0,0.00014712,2]
[353849388,1740091855946,-306.0,0.00014712,2]
[353849389,1740091855955,-153.0,0.00014712,2]
[353849390,1740091855965,-153.0,0.00014712,2]
[353849391,1740091855974,-153.0,0.00014712,2]
[353849392,1740091855983,-154.7577468,0.00014712,2]
[353849393,1740091855993,-805.7816494,0.00014712,2]
[353849394,1740091856002,-154.7577468,0.00014712,2]
[353849395,1740091856011,-153.0,0.00014712,2]
[353849396,1740091856021,-153.0,0.00014712,2]
[353849397,1740091856030,-153.0,0.00014712,2]
[353849398,1740091856039,-153.0,0.00014712,2]
[353849399,1740091856048,-153.0,0.00014712,2]
[353849400,1740091856057,-153.0,0.00014712,2]
[353849401,1740091856067,-154.7577468,0.00014712,2]
[353849402,1740091856076,-153.0,0.00014712,2]
[353849403,1740091856085,-154.7577468,0.00014712,2]
[353849404,1740091856095,-154.7577468,0.00014712,2]
[353849405,1740091856104,-153.0,0.00014712,2]
[353849406,1740091856113,-153.0,0.00014712,2]
[353849407,1740091856123,-153.0,0.00014712,2]
[353849408,1740091856132,-154.7577468,0.00014712,2]
[353849409,1740091856141,-154.7577468,0.00014712,2]
[353849410,1740091856151,-153.0,0.00014712,2]
[353849411,1740091856161,-153.0,0.00014712,2]
[353849412,1740091856171,-155.6032124,0.00014712,2]
[353849413,1740091856181,-154.7577468,0.00014712,2]
[353849414,1740091856191,-154.7577468,0.00014712,2]
[353849415,1740091856200,-209.0499117,0.00014712,2]
[353849416,1740091856210,-154.7577468,0.00014712,2]
[353849417,1740091856220,-154.7577468,0.00014712,2]
[353849418,1740091856230,-154.7577468,0.00014712,2]
[353849419,1740091856240,-154.7577468,0.00014712,2]
[353849420,1740091856250,-154.7577468,0.00014712,2]
[353849421,1740091856259,-154.7577468,0.00014712,2]
[353849422,1740091856269,-154.7577468,0.00014712,2]
[353849423,1740091856279,-1000.0,0.00014721,2]
[353849424,1740091856290,-1000.0,0.00014721,2]
[353849425,1740091856300,-1000.0,0.00014721,2]
[353849426,1740091856311,-1000.0,0.00014721,2]
[353849427,1740091856320,-70205.55338664,0.00014767,5]
[353849428,1740091856329,-1622.86495749,0.00014767,2]
[353849429,1740091856339,-500.0,0.00014767,2]
[353849430,1740091856349,-686.68,0.00014767,2]
[353849431,1740091856359,-500.0,0.00014767,2]
[353849432,1740091856369,-500.0,0.00014767,2]
[353849433,1740091856379,-671.74,0.00014767,2]
[353849434,1740091856388,-500.0,0.00014767,2]
[353849435,1740091856399,-500.0,0.00014767,2]
[353849436,1740091856409,-1783.85,0.00014767,2]
[353849437,1740091856419,-151.0,0.00014767,2]
[353849438,1740091856429,-500.0,0.00014767,2]
[353849439,1740091856438,-500.0,0.00014767,2]
[353849440,1740091856448,-862.2,0.00014767,2]
[353849441,1740091856458,-1028.23,0.00014767,2]
[353849442,1740091856467,-1124.71,0.00014767,2]
[353849443,1740091856478,-263.35877134,0.00014767,2]
[353849444,1740091856487,-500.0,0.00014767,2]
[353849445,1740091856497,-707.15,0.00014767,2]
[353849446,1740091856506,-775.53,0.00014767,2]
[353849447,1740091856515,-1370.18,0.00014767,2]
[353849448,1740091856525,-729.43,0.00014767,2]
[353849449,1740091856534,-500.0,0.00014767,2]
[353849450,1740091856544,-928.99,0.00014767,2]
[353849451,1740091856554,-500.0,0.00014767,2]
[353849452,1740091856563,-721.69,0.00014767,2]
[353849453,1740091856573,-1504.71,0.00014767,2]
[353849454,1740091856582,-693.21,0.00014767,2]
[353849455,1740091856592,-500.0,0.00014767,2]
[353849456,1740091856602,-500.0,0.00014767,2]
[353849457,1740091856611,-631.36,0.00014767,2]
[353849458,1740091856621,-151.0,0.00014767,2]
[353849459,1740091856630,-1377.57,0.00014767,2]
[353849460,1740091856640,-555.94,0.00014767,2]
[353849461,1740091856650,-1000.63,0.00014767,2]
[353849462,1740091856659,-236.41288493,0.00014767,2]
[353849463,1740091856670,-500.0,0.00014767,2]
[353849464,1740091856679,-900.89,0.00014767,2]
[353849465,1740091856768,-664.48,0.00014767,2]
[353849466,1740091856778,-500.0,0.00014767,2]
[353849467,1740091856788,-500.0,0.00014767,2]
[353849468,1740091856798,-601.74,0.00014767,2]
[353849469,1740091856808,-546.38,0.00014767,2]
[353849470,1740091856817,-500.0,0.00014767,2]
[353849471,1740091856826,-4502.58,0.00014767,2]
[353849472,1740091856836,-500.0,0.00014767,2]
[353849473,1740091856845,-151.0,0.00014767,2]
[353849474,1740091856861,-886.79,0.00014767,2]
[353849475,1740091856871,-500.0,0.00014767,2]
[353849476,1740091856880,-1370.08,0.00014767,2]
[353849477,1740091856890,-1573.46,0.00014767,2]